bitfinex/quotes_SOLUSD_20250930
["timestamp","ask_amount","ask_price","bid_price","bid_amount"]
[1759272180660,4.78217206,209.11,209.06,245.96]
[1759272182157,4.78217206,209.11,209.06,250.74324127]
[1759272182552,0.71,209.14,209.07,13.59559401]
[1759272182748,0.71,209.14,209.08,34.06]
[1759272182954,4.78171472,209.13,209.08,34.06]
[1759272183164,5.49171472,209.13,209.08,34.06]
[1759272184385,5.49196837,209.12,209.08,34.06]
[1759272185255,4.78196837,209.12,209.08,34.06]
[1759272185968,5.49196837,209.12,209.08,34.06]
[1759272186153,4.78196837,209.12,209.08,34.06]
[1759272186354,5.49196837,209.12,209.08,34.06]
[1759272186956,5.49196837,209.12,209.08,113.16]
[1759272188075,6.89892202,209.12,209.08,113.16]
[1759272188776,6.18892202,209.12,209.08,113.16]
[1759272189272,6.89892202,209.12,209.08,113.16]
[1759272192970,6.18892202,209.12,209.08,245.96]
[1759272193560,6.89892202,209.12,209.08,245.96]
[1759272194373,11.95361593,209.15,209.08,211.9]
[1759272194675,1.40695365,209.12,209.09,34.04]
[1759272194862,2.11695365,209.12,209.1,34.04]
[1759272195064,2.11695365,209.12,209.11,34.04]
[1759272195459,2.11695365,209.12,209.11,71.34]
[1759272196274,7.88737058,209.12,209.11,71.34]
[1759272196751,7.17737058,209.12,209.11,71.34]
[1759272197154,7.88737058,209.12,209.11,71.34]
[1759272201685,7.88737058,209.12,209.0,14.07559401]
[1759272201686,19.84222903,209.12,209.0,14.07559401]
[1759272201899,19.84222903,209.12,208.98,211.9]
[1759272201900,2.3954272,209.01,208.98,0.48]
[1759272202185,2.3954272,209.01,208.96,0.48]
[1759272202367,2.3954272,209.01,208.97,0.48]
[1759272202571,3.0654272,209.01,208.99,20.8]
[1759272202883,3.0654272,209.01,209.0,34.04]
[1759272203188,7.84988727,209.01,209.0,34.04]
[1759272203883,2.3954272,209.01,209.0,34.04]
[1759272204083,5.4540376,209.03,209.0,34.04]
[1759272204767,4.78328242,209.07,209.01,14.07559401]
[1759272205068,5.45328242,209.07,209.02,34.04]
[1759272205285,0.67,209.06,209.03,37.3]
[1759272205585,0.67,209.05,209.04,34.04]
[1759272205764,5.45328242,209.07,209.04,34.04]
[1759272206087,0.67,209.06,209.04,34.04]
[1759272206286,0.67,209.05,209.04,34.04]
[1759272206791,5.4535446,209.05,209.04,34.04]
[1759272208189,5.4535446,209.05,209.03,37.3]
[1759272208384,4.7835446,209.05,209.03,37.3]
[1759272208700,4.7835446,209.05,209.04,34.04]
[1759272209070,16.74094806,209.07,209.03,37.3]
[1759272209277,2.3954272,209.06,209.04,34.04]
[1759272209476,0.67,209.06,209.04,34.04]
[1759272209676,0.67,209.05,209.04,34.04]
[1759272211180,5.4535446,209.05,209.04,34.04]
[1759272212402,5.4535446,209.05,209.03,37.3]
[1759272212703,16.74160527,209.06,209.04,34.04]
[1759272213088,0.67,209.05,209.04,34.04]
[1759272213684,5.4535446,209.05,209.04,34.04]
[1759272214994,7.8489718,209.05,209.03,37.3]
[1759272215307,3.0654272,209.04,209.03,37.3]
[1759272215486,15.03403246,209.04,209.03,71.32]
[1759272215691,17.42945966,209.04,209.03,71.32]
[1759272216213,22.2132331,209.04,209.03,71.32]
[1759272216585,34.1726667,209.04,209.02,37.3]
[1759272216900,3.0654272,209.03,209.02,37.3]
[1759272217392,17.42945966,209.03,209.02,37.3]
[1759272217784,22.21346195,209.03,209.02,71.32]
[1759272219412,22.21346195,209.03,209.0,37.3]
[1759272219413,34.17346769,209.03,209.0,37.3]
[1759272219587,0.67,209.02,209.01,34.02]
[1759272219918,4.78423117,209.02,209.01,34.02]
[1759272223288,5.45423117,209.02,209.01,34.02]
[1759272224009,7.84965837,209.02,209.01,34.02]
[1759272224495,19.81826363,209.02,209.01,34.02]
[1759272224899,5.45423117,209.02,209.01,34.02]
[1759272229312,7.84965837,209.02,209.0,37.3]
[1759272229491,0.67,209.01,209.0,37.3]
[1759272229686,0.67,209.01,209.0,71.32]
[1759272229888,15.03609601,209.01,209.0,71.32]
[1759272230388,17.43152321,209.01,209.0,71.32]
[1759272230718,14.36609601,209.01,209.0,71.32]
[1759272231203,15.03609601,209.01,209.0,71.32]
[1759272231610,19.82055608,209.01,209.0,71.32]
[1759272232616,4.78446007,209.01,209.0,71.32]
[1759272233494,5.50446007,209.01,209.0,71.32]
[1759272234010,19.86918031,209.01,209.0,71.32]
[1759272235007,5.50446007,209.01,209.0,71.32]
[1759272237396,5.50446007,209.01,209.0,37.3]
[1759272237595,5.50446007,209.01,209.0,71.32]
[1759272237822,19.86918031,209.01,209.0,71.32]
[1759272238402,4.78446007,209.01,209.0,71.32]
[1759272240429,4.78446007,209.01,209.0,150.42]
[1759272240607,4.78446007,209.01,209.0,116.4]
[1759272240928,4.78446007,209.01,209.0,150.4]
[1759272241501,4.78419476,209.03,209.0,150.4]
[1759272241700,4.78419476,209.03,209.01,0.48]
[1759272242015,4.78419476,209.03,209.02,34.0]
[1759272243297,16.74324324,209.04,209.02,34.0]
[1759272243499,17.46324324,209.04,209.02,34.0]
[1759272243699,0.72,209.03,209.0,116.4]
[1759272243903,0.72,209.03,209.01,34.0]
[1759272244302,15.08334474,209.03,209.01,34.0]
[1759272245204,14.36334474,209.03,209.01,34.0]
[1759272245506,16.74324324,209.04,209.01,34.0]
[1759272245715,31.82658798,209.04,209.01,34.0]
[1759272246531,31.10658798,209.04,209.01,113.1]
[1759272246908,31.82658798,209.04,209.01,113.1]
[1759272248109,16.74324324,209.04,209.01,113.1]
[1759272248309,17.46324324,209.04,209.01,113.1]
[1759272249134,31.82590033,209.04,209.01,113.1]
[1759272250042,17.46324324,209.04,209.01,113.1]
[1759272250345,31.82590033,209.04,209.01,113.1]
[1759272251119,17.46324324,209.04,209.01,113.1]
[1759272251324,31.82590033,209.04,209.01,113.1]
[1759272251633,4.78358678,209.05,209.02,0.48]
[1759272251846,4.78358678,209.05,209.03,34.0]
[1759272252137,4.78358678,209.05,209.04,0.48]
[1759272252374,4.78358678,209.05,209.03,34.0]
[1759272252636,4.78358678,209.05,209.03,34.48]
[1759272254439,16.74132832,209.07,209.03,34.48]
[1759272254616,17.46132832,209.07,209.03,113.58]
[1759272256052,17.46132832,209.07,209.03,113.1]
[1759272257219,17.46132832,209.07,209.03,79.1]
[1759272257419,17.46132832,209.07,209.04,33.98]
[1759272257920,17.46132832,209.07,209.03,79.1]
[1759272258120,17.46132832,209.07,209.04,33.98]
[1759272258329,17.46132832,209.07,209.04,113.08]
[1759272259036,16.74132832,209.07,209.04,113.08]
[1759272259748,16.74132832,209.07,209.04,113.56]
[1759272260539,4.783087,209.07,209.05,0.48]
[1759272260747,4.783087,209.07,209.06,33.98]
[1759272260921,4.78285823,209.08,209.06,33.98]
[1759272262346,5.46285823,209.08,209.06,33.98]
[1759272264339,5.46285823,209.08,209.06,113.08]
[1759272265843,5.46285823,209.08,209.07,33.96]
[1759272268149,5.46285823,209.08,209.07,71.26]
[1759272269557,5.49262948,209.09,209.07,71.26]
[1759272269955,5.49262948,209.09,209.08,33.96]
[1759272271847,5.49262948,209.09,209.07,37.3]
[1759272272043,16.73886821,209.1,209.08,33.96]
[1759272272254,14.35990713,209.09,209.08,33.96]
[1759272272563,15.06990713,209.09,209.08,33.96]
[1759272273162,19.85253661,209.09,209.08,33.96]
[1759272276970,5.49262948,209.09,209.08,33.96]
[1759272281144,5.49262948,209.09,209.08,33.94]
[1759272281359,19.85253661,209.09,209.08,33.94]
[1759272282756,21.25857672,209.09,209.08,33.94]
[1759272283851,19.85253661,209.09,209.08,33.94]
[1759272289448,19.85253661,209.09,209.07,37.3]
[1759272289771,19.85253661,209.09,209.08,33.92]
[1759272290372,21.25857672,209.09,209.08,33.92]
[1759272291673,19.85253661,209.09,209.08,33.92]
[1759272291864,19.85253661,209.09,209.07,37.3]
[1759272292172,19.85253661,209.09,209.08,33.92]
[1759272293162,19.14253661,209.09,209.08,33.92]
[1759272293363,19.86253661,209.09,209.07,37.3]
[1759272293564,19.86253661,209.09,209.08,33.92]
[1759272294374,19.14253661,209.09,209.08,33.92]
[1759272294561,19.86253661,209.09,209.08,33.92]
[1759272299701,14.35990713,209.09,209.08,33.92]
[1759272299866,5.50212263,209.12,209.08,33.92]
[1759272300204,0.72,209.11,209.09,33.9]
[1759272300369,20.8,209.09,209.07,37.3]
[1759272300569,2.12604011,209.08,209.07,37.3]
[1759272300881,2.12604011,209.08,209.07,71.2]
[1759272301592,6.90889834,209.08,209.07,71.2]
[1759272302766,18.86604393,209.08,208.99,0.48]
[1759272302970,1.40604011,209.02,208.95,0.48]
[1759272303182,2.12604011,209.01,208.96,33.9]
[1759272303486,2.12604011,209.01,208.97,0.48]
[1759272303689,1.40604011,209.01,208.98,33.9]
[1759272304381,14.36403246,209.04,208.99,0.48]
[1759272304671,1.40604011,209.05,209.0,34.38]
[1759272304871,0.72,209.04,209.01,33.9]
[1759272305076,1.40604011,209.02,208.95,4.51405002]
[1759272305279,1.40604011,209.01,208.96,71.68]
[1759272305488,1.40604011,209.01,208.97,0.48]
[1759272305789,2.12604011,209.01,208.98,33.9]
[1759272305968,1.40604011,209.03,208.99,0.48]
[1759272306169,1.40604011,209.03,209.0,33.9]
[1759272306369,20.8,209.05,209.0,33.9]
[1759272306370,21.52,209.05,209.0,33.9]
[1759272306576,4.78423117,209.02,209.0,33.9]
[1759272309469,0.72,209.01,208.97,0.48]
[1759272309673,0.72,209.01,208.98,33.9]
[1759272311396,4.78468899,209.0,208.98,33.9]
[1759272311883,4.78468899,209.0,208.98,113.0]
[1759272312381,4.78468899,209.0,208.99,33.9]
[1759272313586,4.78446007,209.01,208.99,33.9]
[1759272313786,5.50446007,209.01,208.99,33.9]
[1759272315312,4.78446007,209.01,208.99,34.38]
[1759272315685,11.96057793,209.02,208.99,34.38]
[1759272316479,12.68057793,209.02,208.99,33.9]
[1759272317701,17.4648091,209.02,208.99,113.0]
[1759272318595,17.4548091,209.02,208.99,113.0]
[1759272320598,31.81815384,209.02,208.99,113.0]
[1759272321890,31.81815384,209.02,208.99,79.1]
[1759272322084,31.81815384,209.02,209.0,33.88]
[1759272323611,31.81815384,209.02,209.0,112.98]
[1759272323790,2.91830238,209.01,209.0,79.1]
[1759272324317,17.28302262,209.01,209.0,112.98]
[1759272324805,17.28302262,209.01,208.96,116.4]
[1759272325098,2.19830238,208.98,208.96,116.4]
[1759272325300,2.91830238,208.97,208.96,116.4]
[1759272325698,7.70367827,208.97,208.96,116.4]
[1759272325909,7.70367827,208.97,208.96,150.28]
[1759272326086,22.07046226,208.97,208.96,150.28]
[1759272326493,19.87215988,208.97,208.96,150.28]
[1759272327096,22.07046226,208.97,208.96,150.28]
[1759272329414,22.07046226,208.97,208.96,116.4]
[1759272329912,22.07046226,208.97,208.96,150.26]
[1759272332301,19.15215988,208.97,208.96,150.26]
[1759272332507,22.07046226,208.97,208.96,150.26]
[1759272333110,21.35046226,208.97,208.96,150.26]
[1759272333609,19.15215988,208.97,208.96,150.26]
[1759272334310,4.78537589,208.97,208.96,150.74]
[1759272334513,2.19830238,209.0,208.96,150.74]
[1759272334696,14.36609601,208.98,208.96,150.26]
[1759272334888,14.36609601,208.98,208.97,0.48]
[1759272335297,19.15124291,208.98,208.97,0.48]
[1759272335697,19.15124291,208.98,208.96,150.74]
[1759272336296,19.15124291,208.98,208.97,33.86]
[1759272336614,21.34954529,208.98,208.97,33.86]
[1759272336914,22.06954529,208.98,208.97,33.86]
[1759272343709,22.06954529,208.98,208.96,37.3]
[1759272343904,19.87124291,208.98,208.97,33.86]
[1759272344117,25.5851469,208.98,208.97,33.86]
[1759272344312,39.95193089,208.98,208.97,34.34]
[1759272344616,39.95193089,208.98,208.97,33.86]
[1759272344826,40.67193089,208.98,208.97,33.84]
[1759272345199,42.87023327,208.98,208.97,33.84]
[1759272345623,22.07023327,208.98,208.97,33.84]
[1759272351829,22.07023327,208.98,208.96,37.3]
[1759272352027,19.87193089,208.98,208.97,33.84]
[1759272352230,5.5051469,208.98,208.97,33.84]
[1759272352617,19.87330705,208.98,208.97,33.84]
[1759272353222,22.07160943,208.98,208.97,33.84]
[1759272353805,19.87330705,208.98,208.97,33.84]
[1759272354103,22.07160943,208.98,208.97,33.84]
[1759272354731,22.07160943,208.98,208.96,37.3]
[1759272355025,7.66367827,208.97,208.96,37.3]
[1759272355228,7.66367827,208.97,208.96,71.14]
[1759272355431,22.03183842,208.97,208.96,71.14]
[1759272355819,21.35183842,208.97,208.96,71.14]
[1759272357025,19.15353604,208.97,208.96,71.62]
[1759272357221,19.15353604,208.97,208.96,71.14]
[1759272357444,21.35183842,208.97,208.96,71.14]
[1759272357833,21.35183842,208.97,208.96,37.3]
[1759272358021,22.03183842,208.97,208.96,71.12]
[1759272358222,22.03183842,208.97,208.96,37.3]
[1759272358414,22.03183842,208.97,208.96,71.12]
[1759272358828,21.35183842,208.97,208.96,71.12]
[1759272361032,20.8,208.95,208.94,37.32]
[1759272361243,23.67830238,208.95,208.94,71.14]
[1759272361748,21.08432314,208.94,208.87,0.1]
[1759272362046,2.19830238,208.88,208.87,0.1]
[1759272362544,2.87830238,208.88,208.87,0.1]
[1759272362935,4.79488319,208.88,208.87,0.1]
[1759272363250,2.59658081,208.88,208.87,33.92]
[1759272363468,17.43202219,208.93,208.87,34.4]
[1759272363624,17.43202219,208.93,208.88,0.48]
[1759272363945,14.37160171,208.9,208.89,34.3]
[1759272364532,4.78630235,208.93,208.89,34.3]
[1759272364734,14.37091327,208.92,208.89,34.3]
[1759272365326,2.49873624,209.02,208.89,34.3]
[1759272365327,21.48,208.97,208.9,37.8]
[1759272365540,4.7856189,208.96,208.91,34.3]
[1759272365854,14.36884833,208.94,208.92,0.48]
[1759272366151,5.46514786,208.98,208.93,34.3]
[1759272366333,19.15370053,208.97,208.93,34.3]
[1759272366529,19.83370053,208.97,208.93,34.3]
[1759272367449,19.15370053,208.97,208.93,34.3]
[1759272367654,19.83370053,208.97,208.93,34.3]
[1759272367839,2.19830238,208.94,208.93,33.82]
[1759272368146,2.19830238,208.95,208.93,34.3]
[1759272368342,2.87830238,208.94,208.9,37.32]
[1759272368649,39.95370053,208.97,208.91,34.3]
[1759272368844,25.58554038,208.97,208.91,34.3]
[1759272369047,14.36884833,208.94,208.91,34.3]
[1759272369239,14.36884833,208.94,208.92,0.48]
[1759272369421,2.19830238,208.93,208.92,0.48]
[1759272369626,14.36884833,208.94,208.92,0.48]
[1759272369953,2.19830238,208.93,208.91,33.82]
[1759272370147,6.98462903,208.93,208.91,33.82]
[1759272370356,0.68,208.92,208.9,37.32]
[1759272370563,2.19830238,208.91,208.9,37.32]
[1759272370855,4.78632665,208.93,208.9,71.14]
[1759272371031,2.19830238,208.92,208.9,71.14]
[1759272371234,2.19830238,208.93,208.91,0.48]
[1759272371429,2.19830238,208.93,208.92,33.82]
[1759272371630,4.78562614,208.96,208.92,34.3]
[1759272371935,2.19830238,208.95,208.92,33.82]
[1759272372239,16.56646253,208.95,208.92,33.82]
[1759272372475,16.56646253,208.95,208.92,34.3]
[1759272373061,14.36816015,208.95,208.92,34.3]
[1759272373364,2.19830238,208.94,208.92,34.3]
[1759272373535,2.19830238,208.94,208.92,33.82]
[1759272373948,2.19830238,208.94,208.92,34.3]
[1759272374134,2.19830238,208.94,208.92,113.4]
[1759272376258,2.19830238,208.94,208.92,112.92]
[1759272376457,6.9843681,208.94,208.92,112.92]
[1759272377139,2.19830238,208.94,208.92,112.92]
[1759272377341,21.35241504,208.95,208.92,112.92]
[1759272377558,22.03241504,208.95,208.92,112.92]
[1759272377757,21.35241504,208.95,208.92,112.92]
[1759272379944,6.98425489,208.95,208.92,112.92]
[1759272382353,6.19383018,208.95,208.92,112.92]
[1759272383664,1.40787767,208.95,208.92,113.4]
[1759272383959,1.40787767,208.95,208.92,112.92]
[1759272384861,0.67,208.96,208.92,112.92]
[1759272385057,1.40787767,208.95,208.92,112.92]
[1759272385251,6.19372375,208.95,208.92,112.92]
[1759272385763,6.19372375,208.95,208.92,113.4]
[1759272386257,6.19372375,208.95,208.92,112.92]
[1759272388146,6.86372375,208.95,208.92,112.92]
[1759272388349,6.86372375,208.95,208.93,37.32]
[1759272388562,6.19372375,208.95,208.94,33.8]
[1759272390071,6.86372375,208.95,208.94,33.8]
[1759272390770,6.19372375,208.95,208.94,33.8]
[1759272390943,6.86372375,208.95,208.94,33.8]
[1759272391883,6.86372375,208.95,208.94,112.9]
[1759272392687,6.86372375,208.95,208.94,112.88]
[1759272393054,6.19372375,208.95,208.94,112.88]
[1759272395174,0.67,209.0,208.94,34.26]
[1759272395343,1.40787767,209.01,208.95,0.48]
[1759272395549,22.20787767,209.01,208.96,33.78]
[1759272395755,22.20787767,209.01,208.97,0.48]
[1759272395951,22.87787767,209.01,208.98,33.78]
[1759272397263,4.78468899,209.0,208.98,33.78]
[1759272399766,6.19238687,209.01,208.98,34.26]
[1759272400164,4.7845092,209.01,208.98,34.26]
[1759272400367,5.45421308,209.03,208.98,34.26]
[1759272400566,0.67,209.02,208.98,34.26]
[1759272400963,6.19209075,209.03,208.98,34.26]
[1759272401171,4.78421308,209.03,208.99,0.48]
[1759272401468,4.78421308,209.03,209.0,33.78]
[1759272401777,4.78421308,209.03,209.0,34.26]
[1759272403672,4.78421308,209.03,209.01,0.48]
[1759272403873,4.78379317,209.04,209.02,33.76]
[1759272404568,5.45379317,209.04,209.02,33.76]
[1759272405656,5.45358926,209.05,209.02,33.76]
[1759272406069,0.67,209.04,209.02,33.76]
[1759272406665,5.45388061,209.04,209.02,33.76]
[1759272406971,5.45388061,209.04,209.02,112.86]
[1759272407169,4.78388061,209.04,209.02,112.86]
[1759272407571,4.78388061,209.04,209.02,79.1]
[1759272407780,11.95836387,209.06,209.03,33.76]
[1759272407949,0.67,209.05,209.03,33.76]
[1759272409867,18.14955733,209.06,209.03,33.76]
[1759272410061,0.67,209.05,209.03,33.76]
[1759272412277,4.78377344,209.04,209.02,79.1]
[1759272412480,4.78377344,209.04,209.03,71.08]
[1759272412662,4.78377344,209.04,209.03,150.18]
[1759272414259,4.783087,209.07,209.03,150.66]
[1759272414479,5.443087,209.07,209.03,150.66]
[1759272415374,4.783087,209.07,209.04,0.48]
[1759272415567,4.783087,209.07,209.05,33.74]
[1759272415767,5.443087,209.07,209.05,33.74]
[1759272418470,4.78285823,209.08,209.06,0.48]
[1759272418780,4.78240076,209.1,209.07,33.74]
[1759272418970,4.78240076,209.1,209.07,34.22]
[1759272419772,4.78217206,209.11,209.07,34.22]
[1759272420478,4.78217206,209.11,209.07,33.74]
[1759272420782,4.78217206,209.11,209.08,0.48]
[1759272421085,4.78217206,209.11,209.09,33.74]
[1759272421880,5.44217206,209.11,209.09,33.74]
[1759272422461,4.78171672,209.13,209.09,33.74]
[1759272422662,4.78125747,209.15,209.1,0.48]
[1759272422858,4.78125747,209.15,209.11,34.2]
[1759272423084,5.44125747,209.15,209.12,33.72]
[1759272423386,5.44125747,209.15,209.1,0.48]
[1759272423387,5.44125747,209.15,209.13,33.72]
[1759272423583,5.44125747,209.15,209.14,33.72]
[1759272424071,4.78125747,209.15,209.14,33.72]
[1759272425664,0.2,209.16,209.14,33.72]
[1759272425665,4.98102941,209.16,209.14,33.72]
[1759272426277,5.64102941,209.16,209.14,33.72]
[1759272426871,4.98102941,209.16,209.14,33.72]
[1759272429491,0.2,209.16,209.14,34.2]
[1759272430492,4.98103731,209.16,209.14,33.72]
[1759272431494,0.66,209.15,209.14,33.72]
[1759272431886,2.06787767,209.15,209.04,0.48]
[1759272432188,1.40787767,209.12,209.05,34.18]
[1759272432391,0.66,209.11,209.05,34.18]
[1759272432607,4.78240076,209.1,209.05,34.18]
[1759272432891,5.44240076,209.1,209.05,34.18]
[1759272433589,5.44240076,209.1,209.05,0.48]
[1759272433799,5.44240076,209.1,209.03,37.32]
[1759272433800,2.06787767,209.09,209.03,37.32]
[1759272433992,0.66,209.08,209.06,33.7]
[1759272434177,0.66,209.07,209.06,33.7]
[1759272436112,6.85050715,209.09,209.06,33.7]
[1759272436271,0.66,209.09,209.06,33.7]
[1759272437901,0.66,209.08,209.03,37.32]
[1759272438108,1.40787767,209.06,209.03,116.42]
[1759272438278,0.69,209.05,209.04,33.7]
[1759272439299,0.69,209.07,209.04,33.7]
[1759272440597,4.78331579,209.06,209.04,33.7]
[1759272440794,0.69,209.05,209.03,37.32]
[1759272440990,0.69,209.05,209.04,33.7]
[1759272442107,2.09787767,209.05,209.03,37.32]
[1759272442279,2.88777343,209.04,209.03,37.32]
[1759272442604,2.88777343,209.04,209.03,71.02]
[1759272442805,7.67154687,209.04,209.03,71.02]
[1759272443178,7.67154687,209.04,209.03,37.32]
[1759272443590,7.67154687,209.04,209.03,71.02]
[1759272445881,5.47377344,209.04,209.03,71.02]
[1759272447777,4.78377344,209.04,209.03,71.02]
[1759272447983,0.69,209.11,209.03,71.5]
[1759272448281,20.8,209.1,209.04,0.48]
[1759272448488,20.8,209.1,209.05,33.7]
[1759272448714,21.49,209.1,209.05,33.7]
[1759272449007,4.78262948,209.09,209.05,33.7]
[1759272449201,4.78262948,209.09,209.05,34.18]
[1759272450404,5.47262948,209.09,209.05,33.7]
[1759272451393,17.4292032,209.09,209.05,33.7]
[1759272452711,16.7392032,209.09,209.05,34.18]
[1759272454802,4.78262948,209.09,209.05,33.7]
[1759272455032,4.78262948,209.09,209.06,0.48]
[1759272455207,4.78262948,209.09,209.07,34.16]
[1759272455388,4.78262948,209.09,209.08,33.68]
[1759272455589,4.78262948,209.09,209.08,112.78]
[1759272455787,4.78234793,209.11,209.08,113.26]
[1759272456185,5.47171472,209.13,209.08,112.78]
[1759272456391,0.69,209.12,209.08,112.78]
[1759272457095,4.78217206,209.11,209.08,112.78]
[1759272457609,5.47217206,209.11,209.08,112.78]
[1759272458410,21.0,209.16,209.08,33.68]
[1759272458411,4.78125747,209.15,209.08,33.68]
[1759272458792,20.8,209.13,209.09,0.48]
[1759272458987,20.8,209.13,209.1,33.68]
[1759272459189,20.8,209.13,209.11,0.48]
[1759272459428,20.8,209.13,209.12,34.16]
[1759272460606,20.8,209.14,209.12,34.16]
[1759272461207,25.58129906,209.15,209.12,34.16]
[1759272462221,4.78129906,209.15,209.12,34.16]
[1759272462541,4.78129906,209.15,209.12,33.68]
[1759272463213,5.47129906,209.15,209.12,33.68]
[1759272464805,4.78129906,209.15,209.12,33.68]
[1759272465706,4.78129906,209.15,209.13,33.68]
[1759272465905,5.47129906,209.15,209.13,112.78]
[1759272467000,4.98105564,209.16,209.13,112.78]
[1759272467314,5.67105564,209.16,209.13,112.78]
[1759272467503,4.98105564,209.16,209.13,112.78]
[1759272467702,5.67105564,209.16,209.13,112.78]
[1759272468312,5.67105564,209.16,209.14,37.3]
[1759272468611,5.67105564,209.16,209.15,33.66]
[1759272470215,5.67105564,209.16,209.14,37.3]
[1759272470404,2.88777343,209.15,209.14,37.3]
[1759272470610,17.24561879,209.15,209.12,37.3]
[1759272470801,2.19777343,209.13,209.12,37.3]
[1759272471002,2.88777343,209.13,209.12,37.3]
[1759272471228,17.24561879,209.13,209.12,37.3]
[1759272471900,22.02733351,209.13,209.12,70.96]
[1759272472507,19.82956008,209.13,209.12,70.96]
[1759272472922,22.02733351,209.13,209.12,70.96]
[1759272473510,22.02733351,209.13,209.12,37.3]
[1759272473714,22.02733351,209.13,209.12,70.96]
[1759272474506,22.02733351,209.13,209.12,37.3]
[1759272474507,19.82956008,209.13,209.12,37.3]
[1759272474705,19.13956008,209.13,209.12,70.96]
[1759272478821,19.81956008,209.13,209.12,70.96]
[1759272479320,19.13956008,209.13,209.12,70.96]
[1759272480423,14.35784536,209.13,209.12,70.96]
[1759272480603,0.2,209.16,209.12,71.44]
[1759272480803,0.2,209.16,209.12,70.96]
[1759272481011,0.68,209.15,209.13,33.66]
[1759272481211,0.68,209.14,209.13,33.66]
[1759272481403,5.66107627,209.16,209.13,33.66]
[1759272482122,20.01479986,209.16,209.13,33.66]
[1759272482331,5.66107627,209.16,209.13,33.66]
[1759272482510,4.98107627,209.16,209.13,33.66]
[1759272482716,4.98107627,209.16,209.13,34.14]
[1759272483432,0.2,209.16,209.13,34.14]
[1759272483622,0.2,209.16,209.14,0.48]
[1759272483807,0.2,209.16,209.15,33.64]
[1759272484730,0.2,209.16,209.15,34.12]
[1759272486923,0.2,209.16,209.15,113.22]
[1759272488926,0.2,209.16,209.15,118.00125747]
[1759272489930,0.2,209.16,209.15,250.80125747]
[1759272492731,0.2,209.16,209.15,246.02]
[1759272493131,0.2,209.16,209.15,245.54]
[1759272494037,0.88,209.16,209.15,79.1]
[1759272494337,10.64141033,209.16,209.15,33.64]
[1759272495628,5.86038146,209.16,209.15,33.64]
[1759272495827,0.2,209.16,209.15,33.64]
[1759272496426,5.66102887,209.16,209.15,33.64]
[1759272499037,5.66102887,209.16,209.15,33.62]
[1759272500227,17.61360106,209.16,209.12,37.3]
[1759272500438,0.7,209.15,209.13,33.62]
[1759272502131,5.4814466,209.15,209.13,33.62]
[1759272502345,4.7814466,209.15,209.13,33.62]
[1759272502723,5.4814466,209.15,209.13,33.62]
[1759272503236,0.67,209.14,209.12,37.3]
[1759272503414,16.73459027,209.15,209.12,37.3]
[1759272503415,18.9323637,209.15,209.13,33.62]
[1759272504045,0.67,209.14,209.13,33.62]
[1759272504232,5.45148608,209.14,209.13,33.62]
[1759272507928,4.98123206,209.16,209.13,33.62]
[1759272508136,5.65123206,209.16,209.13,33.62]
[1759272508528,0.67,209.15,209.13,33.62]
[1759272511250,4.98123206,209.16,209.13,33.62]